bitfinex/quotes_SOLUSD_20241107
["timestamp","ask_amount","ask_price","bid_price","bid_amount"]
[1730959165946,7.87686591,188.89,188.84,0.12549]
[1730959166268,7.87686591,188.89,188.85,2.11740356]
[1730959166564,7.87686591,188.89,188.86,2.11740356]
[1730959166770,7.87686591,188.89,188.87,4.76416812]
[1730959166975,7.87686591,188.89,188.88,4.76416812]
[1730959169375,0.5065091,188.92,188.88,4.76416812]
[1730959169665,0.5065091,188.92,188.89,4.76416812]
[1730959169869,0.5065091,188.92,188.9,2.11740356]
[1730959170073,0.5065091,188.92,188.91,2.11740356]
[1730959172041,8.38337501,188.92,188.91,2.11740356]
[1730959173358,8.38337501,188.92,188.91,4.76403067]
[1730959178272,0.5065091,188.92,188.91,2.6467362]
[1730959178565,8.38337501,188.92,188.91,2.6467362]
[1730959179644,0.5065091,188.92,188.91,2.6467362]
[1730959179869,8.38337501,188.92,188.91,2.6467362]
[1730959181873,8.38337501,188.92,188.84,21.119058]
[1730959182058,7.87686591,188.9,188.84,21.119058]
[1730959182252,7.87686591,188.9,188.86,0.12549]
[1730959182454,7.87686591,188.89,188.87,2.64662903]
[1730959182764,7.87686591,188.9,188.88,2.64662903]
[1730959182971,7.87686591,188.9,188.89,2.64662903]
[1730959185673,7.87686591,188.9,188.85,0.12549]
[1730959185855,7.87686591,188.88,188.86,2.64661731]
[1730959186472,7.87686591,188.88,188.87,2.64661731]
[1730959189484,7.87686591,188.88,188.84,16.2294]
[1730959189669,7.87686591,188.87,188.85,2.64679153]
[1730959189864,7.87686591,188.87,188.86,2.64679153]
[1730959192568,7.87686591,188.89,188.86,2.64679153]
[1730959192756,7.87686591,188.89,188.87,2.64679153]
[1730959192957,7.87686591,188.89,188.88,2.64679153]
[1730959193177,7.87686591,188.89,188.84,16.2294]
[1730959193380,7.87686591,188.89,188.88,2.64673178]
[1730959193875,0.5065091,188.92,188.88,2.64673178]
[1730959194177,7.87686591,188.89,188.83,0.12549]
[1730959194380,7.87686591,188.87,188.84,2.64684678]
[1730959194586,7.87686591,188.87,188.85,2.64684678]
[1730959194877,7.87686591,188.87,188.86,2.64684678]
[1730959195463,7.87686591,188.88,188.86,2.64684678]
[1730959195664,7.87686591,188.88,188.83,0.12549]
[1730959197481,0.5065091,188.92,188.85,23.902374]
[1730959197665,7.87686591,188.91,188.85,23.902374]
[1730959197866,7.87686591,188.9,188.85,23.902374]
[1730959200679,7.87686591,188.9,188.84,23.902374]
[1730959200869,7.87686591,188.89,188.84,0.12549]
[1730959201078,0.5065091,188.92,188.84,0.12549]
[1730959201267,0.5065091,188.92,188.91,0.25272792]
[1730959201464,8.38337501,188.92,188.91,0.25272792]
[1730959204366,8.38337501,188.92,188.9,0.25272792]
[1730959204673,0.5065091,188.92,188.9,0.25272792]
[1730959204859,0.5065091,188.92,188.91,0.25056841]
[1730959205062,8.38337501,188.92,188.91,0.25056841]
[1730959205492,0.5065091,188.92,188.91,0.25056841]
[1730959205666,8.38337501,188.92,188.91,0.25056841]
[1730959207170,8.38337501,188.92,188.87,0.12549]
[1730959207369,8.38337501,188.92,188.91,0.25035988]
[1730959207581,8.38337501,188.92,188.91,0.50072137]
[1730959207770,8.38337501,188.92,188.91,0.25036149]
[1730959208576,8.38337501,188.92,188.87,0.12549]
[1730959209164,0.5065091,188.92,188.87,0.12549]
[1730959211294,0.5065091,188.92,188.89,0.12549]
[1730959215590,8.38337501,188.92,188.89,1.30321442]
[1730959215787,8.38337501,188.92,188.86,20.0]
[1730959216103,7.87686591,188.91,188.86,20.0]
[1730959216471,7.87686591,188.91,188.87,0.12549]
[1730959216871,7.87686591,188.91,188.87,23.902374]
[1730959217102,8.38337501,188.92,188.87,23.902374]
[1730959217404,7.87686591,188.91,188.87,23.902374]
[1730959218488,7.87686591,188.91,188.87,23.776884]
[1730959220106,7.87686591,188.9,188.85,16.62970529]
[1730959220606,7.87686591,188.9,188.86,0.12549]
[1730959221707,7.87686591,188.9,188.86,23.902374]
[1730959221887,7.87686591,188.91,188.86,23.902374]
[1730959224278,0.5065091,188.92,188.86,23.902374]
[1730959224693,7.87686591,188.91,188.86,23.902374]
[1730959225808,7.87686591,188.91,188.86,20.12549]
[1730959226186,7.87686591,188.9,188.86,20.12549]
[1730959226703,7.87686591,188.9,188.86,0.12549]
[1730959230294,7.87686591,188.91,188.86,23.902374]
[1730959231903,8.38337501,188.92,188.86,23.902374]
[1730959232104,8.38337501,188.92,188.91,0.2506326]
[1730959232299,8.38337501,188.92,188.86,23.902374]
[1730959232508,8.38337501,188.92,188.86,94.002374]
[1730959232808,0.5065091,188.92,188.86,101.87923991]
[1730959233110,0.5065091,188.92,188.86,101.77923991]
[1730959233301,0.5065091,188.92,188.88,23.776884]
[1730959233615,0.5065091,188.92,188.86,23.776884]
[1730959233798,0.5065091,188.92,188.87,0.12549]
[1730959234602,0.5065091,188.92,188.89,23.902374]
[1730959235000,0.5065091,188.92,188.89,0.12549]
[1730959238421,0.5065091,188.92,188.91,0.12549]
[1730959238611,0.5065091,188.92,188.91,2.24269393]
[1730959248217,0.5065091,188.92,188.89,0.12549]
[1730959248523,0.5065091,188.92,188.91,0.12549]
[1730959248737,0.5065091,188.92,188.91,2.24270259]
[1730959250820,0.5065091,188.92,188.91,2.11721259]
[1730959251921,0.5065091,188.92,188.87,0.12549]
[1730959252113,0.5065091,188.92,188.91,2.11724446]
[1730959252318,8.38337501,188.92,188.87,0.12549]
[1730959252616,0.5065091,188.92,188.89,0.12549]
[1730959252810,0.5065091,188.92,188.9,2.11724446]
[1730959253014,0.5065091,188.92,188.91,2.11724446]
[1730959254030,8.38337501,188.92,188.91,2.11724446]
[1730959255541,8.38337501,188.92,188.86,0.12549]
[1730959255730,7.87686591,188.91,188.86,0.12549]
[1730959255907,7.87686591,188.91,188.88,0.12549]
[1730959256109,7.87686591,188.91,188.89,2.64657781]
[1730959256319,7.87686591,188.91,188.9,2.64657781]
[1730959257423,0.5065091,188.92,188.9,2.89720981]
[1730959257622,7.87686591,188.91,188.9,0.250632]
[1730959258731,8.38337501,188.92,188.85,8.00235591]
[1730959259050,8.38337501,188.92,188.84,23.776884]
[1730959259051,8.38337501,188.92,188.87,0.12549]
[1730959259720,8.38337501,188.92,188.85,8.00235591]
[1730959261930,0.5065091,188.92,188.87,7.87686591]
[1730959262144,0.5065091,188.92,188.88,0.12549]
[1730959263755,0.5065091,188.92,188.9,0.12549]
[1730959264106,0.5065091,188.92,188.89,0.12549]
[1730959266237,0.5065091,188.92,188.86,0.1]
[1730959266419,0.5065091,188.92,188.88,23.902374]
[1730959266620,0.5065091,188.92,188.88,31.77923991]
[1730959267637,0.5065091,188.92,188.9,23.902374]
[1730959267945,7.87686591,188.95,188.94,160.0934909]
[1730959268149,7.87686591,188.95,188.93,0.25015993]
[1730959268444,7.87686591,188.95,188.93,0.12549]
[1730959268847,7.87686591,188.95,188.9,0.12549]
[1730959269017,7.87686591,188.95,188.93,0.12549]
[1730959269618,7.87686591,188.95,188.93,0.37567004]
[1730959269847,7.87686591,188.95,188.92,0.25018004]
[1730959270516,6.1175,188.96,188.92,0.25018004]
[1730959270743,13.99436591,188.96,188.93,0.25018004]
[1730959271117,7.87686591,188.95,188.93,0.25018004]
[1730959272120,7.87686591,188.95,188.92,0.25018004]
[1730959273421,7.87686591,188.95,188.92,0.25021353]
[1730959273720,22.06826278,188.98,188.93,0.12549]
[1730959273924,7.87686591,188.96,188.93,0.3755812]
[1730959277531,7.87686591,188.96,188.94,0.12549]
[1730959278843,7.87686591,188.96,188.93,0.25015455]
[1730959279040,7.87686591,188.95,188.93,0.25015455]
[1730959279248,22.06826278,188.98,188.93,0.25015455]
[1730959279540,7.87686591,188.95,188.93,0.25015455]
[1730959282333,7.87686591,188.97,188.93,0.25015455]
[1730959282537,7.87686591,188.97,188.94,0.12549]
[1730959282842,5.50176278,188.98,188.94,0.12549]
[1730959283051,7.87686591,188.97,188.94,0.12549]
[1730959285455,5.50176278,188.98,188.94,0.12549]
[1730959285646,13.37862869,188.98,188.94,0.12549]
[1730959286859,13.37862869,188.98,188.93,0.12549]
[1730959287141,13.37862869,188.98,188.93,0.37632785]
[1730959287332,13.37862869,188.98,188.93,24.15321185]
[1730959288030,7.87686591,188.97,188.93,24.15321185]
[1730959288245,7.87686591,188.97,188.93,0.12549]
[1730959288754,7.87686591,188.97,188.93,0.37613122]
[1730959289924,7.87686591,188.96,188.93,0.37613122]
[1730959290850,7.87686591,188.97,188.93,0.37613122]
[1730959292049,7.87686591,188.97,188.93,0.12549]
[1730959292934,13.37862869,188.98,188.93,0.37635009]
[1730959293553,7.87686591,188.97,188.93,0.37635009]
[1730959293780,7.87686591,188.97,188.93,0.62721831]
[1730959295366,7.87686591,188.97,188.93,0.62720659]
[1730959295653,13.37862869,188.98,188.93,0.62720659]
[1730959296579,13.37862869,188.98,188.93,0.37635009]
[1730959296732,13.37862869,188.98,188.93,0.62720633]
[1730959297231,5.50176278,188.98,188.93,0.62720633]
[1730959297433,13.37862869,188.98,188.93,0.62720633]
[1730959297942,7.87686591,188.97,188.93,0.62720633]
[1730959299662,5.50176278,188.98,188.93,0.62720633]
[1730959299663,5.50176278,188.98,188.95,0.12549]
[1730959299872,5.50176278,188.98,188.97,0.12549]
[1730959302062,13.37862869,188.98,188.94,0.2508744]
[1730959302664,5.50176278,188.98,188.95,0.12549]
[1730959308578,5.50176278,188.98,188.97,0.12549]
[1730959309352,5.50176278,188.98,188.95,0.12549]
[1730959309561,7.87686591,188.96,188.94,0.25082931]
[1730959309763,11.86626278,188.98,188.87,70.0]
[1730959309764,7.87686591,188.95,188.92,0.25082931]
[1730959309959,7.87686591,188.93,188.92,0.25082931]
[1730959310671,7.87686591,188.93,188.92,0.37631931]
[1730959311371,7.87686591,188.93,188.92,0.25082931]
[1730959311589,7.87686591,188.93,188.88,0.12549]
[1730959311753,7.87686591,188.92,188.88,23.902374]
[1730959312448,11.86626278,188.98,188.9,23.902374]
[1730959312673,7.87686591,188.94,188.92,0.25054197]
[1730959313949,7.87686591,188.95,188.92,0.25054197]
[1730959314156,7.87686591,188.93,188.92,0.25054197]
[1730959315664,7.87686591,188.93,188.92,0.25057448]
[1730959316173,7.87686591,188.93,188.92,2.493276]
[1730959317476,11.86626278,188.98,188.93,23.902374]
[1730959317771,7.87686591,188.96,188.95,0.12549]
[1730959317982,7.87686591,188.96,188.95,4.88913584]
[1730959318144,7.87686591,188.96,188.95,0.12549]
[1730959318350,11.86626278,188.98,188.96,0.12549]
[1730959318555,7.87686591,188.97,188.96,0.12549]
[1730959318975,7.87686591,188.97,188.94,0.12549]
[1730959319161,7.87686591,188.96,188.94,0.12549]
[1730959320561,7.87686591,188.95,188.94,0.12549]
[1730959321652,7.87686591,188.95,188.93,0.12549]
[1730959321870,7.87686591,188.95,188.93,0.37619554]
[1730959324282,7.87686591,188.96,188.93,0.37619554]
[1730959325557,7.87686591,188.94,188.93,0.25070554]
[1730959325858,7.87686591,188.94,188.85,101.73]
[1730959326053,11.86626278,188.98,188.85,101.73]
[1730959326054,7.87686591,188.91,188.85,70.0]
[1730959326680,11.86626278,188.98,188.85,77.87686591]
[1730959326681,7.87686591,188.92,188.85,77.87686591]
[1730959327171,7.87686591,188.92,188.85,79.18159844]
[1730959327560,7.87686591,188.92,188.86,23.776884]
[1730959327762,7.87686591,188.92,188.87,0.12549]
[1730959328168,7.87686591,188.91,188.87,0.12549]
[1730959329477,7.87686591,188.92,188.87,0.12549]
[1730959330480,7.87686591,188.91,188.87,0.12549]
[1730959332485,16.3664,188.95,188.87,0.12549]
[1730959332784,7.87686591,188.92,188.87,0.12549]
[1730959333078,7.87686591,188.93,188.87,0.12549]
[1730959334187,7.87686591,188.92,188.87,0.12549]
[1730959334679,7.87686591,188.93,188.87,0.12549]
[1730959335488,7.87686591,188.93,188.89,0.12549]
[1730959337574,7.87686591,188.94,188.89,0.12549]
[1730959337985,7.87686591,188.93,188.89,0.12549]
[1730959339395,7.87686591,188.92,188.89,0.12549]
[1730959339575,7.87686591,188.93,188.89,0.12549]
[1730959344387,16.3664,188.95,188.89,0.12549]
[1730959344596,24.24326591,188.95,188.89,0.12549]
[1730959344897,11.86626278,188.98,188.91,0.12549]
[1730959345077,7.87686591,188.96,188.91,0.12549]
[1730959347512,11.86626278,188.98,188.93,0.12549]
[1730959347676,7.87686591,188.96,188.93,0.12549]
[1730959349293,5.50176278,188.98,188.93,0.12549]
[1730959349596,13.37862869,188.98,188.93,0.12549]
[1730959351288,7.87686591,188.97,188.93,0.12549]
[1730959354271,7.87686591,188.96,188.93,0.12549]
[1730959354890,7.87686591,188.95,188.93,0.12549]
[1730959355691,7.87686591,188.94,188.91,1.3098918]
[1730959355891,5.50176278,188.98,188.97,152.72313409]
[1730959356087,13.37862869,188.98,188.9,6.26091688]
[1730959356304,7.87686591,188.94,188.9,6.26091688]
[1730959356478,7.87686591,188.94,188.91,0.12549]
[1730959357208,7.87686591,188.94,188.91,23.902374]
[1730959357500,5.50176278,188.98,188.91,23.902374]
[1730959357683,7.87686591,188.96,188.91,23.902374]
[1730959358594,7.87686591,188.96,188.92,0.12549]
[1730959359184,7.87686591,188.95,188.92,0.12549]
[1730959360099,7.87686591,188.96,188.92,0.12549]
[1730959360280,7.87686591,188.95,188.92,0.12549]
[1730959362591,7.87686591,188.96,188.92,0.12549]
[1730959362983,5.50176278,188.98,188.92,0.12549]
[1730959363209,7.87686591,188.96,188.92,0.12549]
[1730959364092,5.50176278,188.98,188.92,0.12549]
[1730959364286,7.87686591,188.95,188.92,0.12549]
[1730959364799,7.87686591,188.94,188.9,4.9467244]
[1730959365109,5.50176278,188.98,188.97,152.72313409]
[1730959365404,13.37862869,188.98,188.9,0.12549]
[1730959365607,7.87686591,188.93,188.9,0.12549]
[1730959365913,7.87686591,188.94,188.9,0.12549]
[1730959367381,5.50176278,188.98,188.9,0.12549]
[1730959367582,7.87686591,188.95,188.9,23.902374]
[1730959373095,5.50176278,188.98,188.9,23.902374]
[1730959373294,7.87686591,188.96,188.9,23.902374]
[1730959373783,7.87686591,188.96,188.91,0.12549]
[1730959376908,5.50176278,188.98,188.89,1.35181363]
[1730959377115,7.87686591,188.95,188.88,4.9467244]
[1730959377494,7.87686591,188.94,188.89,0.12549]
[1730959378409,7.87686591,188.94,188.89,23.902374]
[1730959378911,7.87686591,188.94,188.89,23.776884]
[1730959379093,7.87686591,188.94,188.91,0.12549]
[1730959379293,7.87686591,188.94,188.92,2.64655736]
[1730959379507,7.87686591,188.94,188.93,2.64655736]
[1730959379692,15.5151,188.97,188.93,4.76380325]
[1730959380013,15.5151,188.97,188.83,11.20241294]
[1730959380014,7.87686591,188.94,188.87,0.12549]
[1730959380212,7.87686591,188.93,188.89,0.12549]
[1730959380392,7.87686591,188.93,188.9,2.64655333]
[1730959380593,7.87686591,188.93,188.91,2.64655333]
[1730959380813,7.87686591,188.93,188.92,2.64655333]
[1730959381612,7.87686591,188.94,188.92,2.64655333]
[1730959381800,7.87686591,188.94,188.93,2.64655333]
[1730959388094,7.87686591,188.95,188.93,2.64655333]
[1730959388406,7.87686591,188.95,188.94,2.64655333]
[1730959394134,7.87686591,188.95,188.91,0.24644919]
[1730959394302,7.87686591,188.93,188.92,2.64666032]
[1730959394520,7.87686591,188.93,188.85,1.34819261]
[1730959394815,15.5151,188.97,188.92,2.64666347]
[1730959395332,15.5151,188.97,188.91,0.24759442]
[1730959395533,7.87686591,188.92,188.91,0.24759442]
[1730959395902,7.87686591,188.93,188.91,0.24759442]
[1730959397304,15.5151,188.97,188.91,0.24759442]
[1730959397816,15.5151,188.97,188.92,0.24759442]
[1730959398019,7.87686591,188.96,188.92,0.24761951]
[1730959399111,7.87686591,188.95,188.92,0.24761951]
[1730959401239,7.87686591,188.93,188.92,0.24761951]
[1730959401529,7.87686591,188.93,188.85,23.776884]
[1730959401728,0.1,188.96,188.91,0.24720984]
[1730959401927,20.0,188.96,188.91,0.24720984]
[1730959402127,20.1,188.96,188.91,0.24720984]
[1730959403032,7.87686591,188.92,188.91,0.24720984]
[1730959405103,7.87686591,188.92,188.91,0.24707075]
[1730959405330,7.87686591,188.92,188.86,0.12549]
[1730959405525,7.87686591,188.91,188.9,0.24709424]
[1730959406108,7.87686591,188.91,188.89,0.24709424]
[1730959406719,7.87686591,188.9,188.89,0.24709424]
[1730959407215,7.87686591,188.9,188.86,0.24709424]
[1730959407542,7.87686591,188.87,188.86,0.24709424]
[1730959408333,7.87686591,188.87,188.85,0.24709424]
[1730959408578,7.87686591,188.86,188.75,11.84669762]
[1730959408710,6.4042,188.87,188.83,0.24610456]
[1730959408915,6.4042,188.87,188.75,1.32149011]
[1730959409128,6.4042,188.87,188.7,16.3318]
[1730959409129,15.3786,188.84,188.71,3.96983171]
[1730959409338,15.3786,188.84,188.8,0.24632318]
[1730959409530,20.1,188.83,188.8,0.24665669]
[1730959409716,20.1,188.83,188.7,21.54175256]
[1730959409919,20.1,188.83,188.79,0.24641805]
[1730959410136,20.0,188.83,188.78,0.24641805]
[1730959410338,7.87686591,188.79,188.76,0.24641805]
[1730959411327,7.87686591,188.79,188.75,0.24641805]
[1730959411658,7.87686591,188.8,188.75,0.24641805]
[1730959412552,7.87686591,188.8,188.73,7.87686591]
[1730959412743,6.4042,188.82,188.76,0.12549]
[1730959412929,7.87686591,188.85,188.78,7.87686591]
[1730959413128,7.87686591,188.85,188.79,7.87686591]
[1730959413733,7.87686591,188.85,188.79,8.12245841]
[1730959414460,7.87686591,188.85,188.74,23.902374]
[1730959414651,7.87686591,188.85,188.79,0.49231202]
[1730959416381,7.87686591,188.84,188.79,0.49231202]
[1730959416661,7.87686591,188.85,188.79,0.24615488]
[1730959416842,7.87686591,188.85,188.79,0.49191132]
[1730959417160,7.87686591,188.85,188.79,8.36877723]
[1730959417545,6.0192,188.86,188.79,8.36877723]
[1730959417729,13.89606591,188.86,188.79,8.12302079]
[1730959418060,6.0192,188.86,188.79,8.36850246]
[1730959418565,13.89606591,188.86,188.79,8.36850246]
[1730959419135,6.0192,188.86,188.8,7.87686591]
[1730959419742,6.0192,188.86,188.81,7.87686591]
[1730959419948,6.0192,188.86,188.8,8.00235591]
[1730959420457,6.0192,188.86,188.81,7.87686591]
[1730959422462,15.1356,188.88,188.81,7.87686591]
[1730959422463,7.87686591,188.87,188.81,7.87686591]
[1730959422859,7.87686591,188.87,188.8,8.00235591]
[1730959423856,15.1356,188.88,188.8,8.00235591]
[1730959424060,7.87686591,188.87,188.8,8.00235591]
[1730959428768,6.0737,188.9,188.82,7.87686591]
[1730959428769,7.87686591,188.89,188.82,7.87686591]
[1730959429367,7.87686591,188.88,188.76,23.902374]
[1730959429560,7.87686591,188.88,188.82,7.87686591]
[1730959429876,7.87686591,188.86,188.76,23.902374]
[1730959430269,7.87686591,188.86,188.8,7.87686591]
[1730959430562,6.0737,188.9,188.81,7.87686591]
[1730959430767,7.87686591,188.87,188.81,7.87686591]
[1730959431456,7.87686591,188.88,188.81,7.87686591]
[1730959433069,7.87686591,188.88,188.76,93.776884]
[1730959433070,7.87686591,188.88,188.82,7.87686591]
[1730959433469,7.87686591,188.88,188.81,7.87686591]
[1730959438147,7.87686591,188.87,188.81,7.87686591]
[1730959439847,7.87686591,188.87,188.82,2.11803667]
[1730959440047,7.87686591,188.87,188.81,7.87686591]
[1730959440852,7.87686591,188.86,188.8,7.87686591]
[1730959442068,7.87686591,188.87,188.8,7.87686591]
[1730959442446,7.87686591,188.86,188.8,7.87686591]
[1730959442646,7.87686591,188.87,188.8,7.87686591]
[1730959443362,7.87686591,188.87,188.81,7.87686591]
[1730959444747,7.87686591,188.87,188.77,0.12549]
[1730959445068,7.87686591,188.87,188.81,7.87686591]
[1730959446141,7.87686591,188.86,188.8,0.12549]
[1730959446542,7.87686591,188.87,188.8,8.00235591]
[1730959448355,7.87686591,188.88,188.8,8.00235591]
[1730959451175,7.87686591,188.88,188.81,7.87686591]
[1730959451363,7.87686591,188.86,188.79,7.87686591]
[1730959451883,7.87686591,188.87,188.8,7.87686591]
[1730959453578,7.87686591,188.87,188.76,0.12549]
[1730959453782,6.0737,188.9,188.81,7.87686591]
[1730959453985,7.87686591,188.89,188.81,7.87686591]
[1730959455164,7.87686591,188.89,188.82,2.64752422]
[1730959455357,7.87686591,188.89,188.83,2.64752422]
[1730959455558,7.87686591,188.89,188.81,7.87686591]
[1730959455762,7.87686591,188.88,188.82,2.64752397]
[1730959455965,7.87686591,188.88,188.83,2.64752397]
[1730959456177,7.87686591,188.88,188.81,7.87686591]
[1730959456469,7.87686591,188.88,188.82,2.64752492]
[1730959456660,7.87686591,188.88,188.81,7.87686591]
[1730959456959,7.87686591,188.88,188.82,2.64752397]
[1730959457272,7.87686591,188.88,188.83,2.64752397]
[1730959457474,7.87686591,188.86,188.8,0.12549]
[1730959457775,7.87686591,188.87,188.8,8.00235591]
[1730959457977,7.87686591,188.88,188.8,8.00235591]
[1730959458967,7.87686591,188.87,188.8,7.87686591]
[1730959460676,7.87686591,188.87,188.77,0.12549]
[1730959460878,7.87686591,188.87,188.8,7.87686591]
[1730959462667,7.87686591,188.87,188.77,0.12549]
[1730959462871,7.87686591,188.86,188.79,7.87686591]
[1730959463080,7.87686591,188.87,188.79,7.87686591]
[1730959464261,7.87686591,188.86,188.79,7.87686591]
[1730959464679,7.87686591,188.86,188.78,7.87686591]
[1730959465069,7.87686591,188.83,188.75,16.17]
[1730959465272,7.87686591,188.83,188.76,7.87686591]
[1730959465884,7.87686591,188.82,188.76,7.87686591]
[1730959466412,6.6422,188.85,188.71,15.0698]
[1730959466413,7.87686591,188.81,188.75,7.87686591]
[1730959467593,7.87686591,188.79,188.72,0.12549]
[1730959467792,7.87686591,188.81,188.75,7.87686591]
[1730959468092,7.87686591,188.81,188.74,7.87686591]
[1730959468296,7.87686591,188.81,188.71,15.0698]
[1730959468590,7.87686591,188.8,188.74,7.87686591]
[1730959469566,7.87686591,188.8,188.73,7.87686591]
[1730959470769,7.87686591,188.81,188.74,7.87686591]
[1730959471398,7.87686591,188.8,188.74,7.87686591]
[1730959472393,7.87686591,188.8,188.71,15.0698]
[1730959472595,7.87686591,188.8,188.74,7.87686591]
[1730959472966,7.87686591,188.8,188.71,15.0698]
[1730959472967,7.87686591,188.79,188.68,0.12549]
[1730959473191,16.2529,188.81,188.72,7.87686591]
[1730959473192,7.87686591,188.78,188.72,7.87686591]
[1730959473567,7.87686591,188.79,188.73,7.87686591]
[1730959473998,7.87686591,188.79,188.72,7.87686591]
[1730959474499,16.3529,188.81,188.71,7.87686591]
[1730959474500,13.95296591,188.78,188.71,7.87686591]
[1730959474692,7.87686591,188.77,188.71,7.87686591]
[1730959474896,7.87686591,188.76,188.7,7.87686591]
[1730959477678,7.87686591,188.71,188.6,16.4679]
[1730959477877,7.87686591,188.67,188.61,7.87686591]
[1730959478391,12.27267664,188.71,188.6,16.4679]
[1730959478392,7.87686591,188.68,188.62,7.87686591]
[1730959479678,7.87686591,188.68,188.6,16.4679]
[1730959479885,7.87686591,188.67,188.61,7.87686591]
[1730959481800,7.87686591,188.67,188.6,7.87686591]
[1730959482176,7.87686591,188.66,188.6,7.87686591]
[1730959482376,7.87686591,188.67,188.6,7.87686591]
[1730959483097,7.87686591,188.67,188.61,7.87686591]
[1730959484395,7.87686591,188.67,188.57,0.12549]
[1730959484396,7.87686591,188.67,188.6,7.87686591]
[1730959484701,7.87686591,188.66,188.6,8.12073525]
[1730959485085,7.87686591,188.66,188.6,0.24386934]
[1730959485291,7.87686591,188.66,188.6,8.12073525]
[1730959485901,7.87686591,188.65,188.6,0.24386934]
[1730959486108,7.87686591,188.64,188.59,0.24386934]
[1730959486602,7.87686591,188.64,188.59,0.24358456]
[1730959486905,7.87686591,188.65,188.59,8.12045047]
[1730959487889,7.87686591,188.64,188.59,0.24358456]
[1730959489085,7.87686591,188.62,188.59,0.24358456]
[1730959489307,7.87686591,188.6,188.58,0.24358456]
[1730959489599,0.2,188.64,188.56,8.12045047]
[1730959489600,7.87686591,188.62,188.56,8.12045047]
[1730959489908,7.87686591,188.62,188.56,8.11984437]
[1730959490297,7.87686591,188.62,188.56,0.24297846]
[1730959490481,7.87686591,188.62,188.57,0.24297846]
[1730959490986,7.87686591,188.62,188.56,0.24297846]
[1730959491905,7.87686591,188.62,188.55,8.11984437]
[1730959492284,7.87686591,188.62,188.55,0.24297846]
[1730959492883,7.87686591,188.62,188.55,8.11984437]
[1730959493584,7.87686591,188.62,188.55,8.11930515]
[1730959493787,7.87686591,188.61,188.55,0.24243924]
[1730959493984,7.87686591,188.62,188.55,0.24243924]
[1730959494502,7.87686591,188.61,188.56,0.24243924]
[1730959494800,7.87686591,188.61,188.58,0.24243924]
[1730959495005,7.87686591,188.61,188.58,0.24229697]
[1730959495193,7.87686591,188.61,188.5,1.35846484]
[1730959495499,23.876884,188.62,188.55,7.87686591]
[1730959495686,7.87686591,188.61,188.55,7.87686591]
[1730959495883,7.87686591,188.61,188.56,0.24250253]
[1730959496079,7.87686591,188.61,188.55,8.11936844]
[1730959496786,7.87686591,188.61,188.56,0.24250253]
[1730959497110,7.87686591,188.61,188.55,0.24250253]
[1730959497315,7.87686591,188.6,188.47,23.902374]
[1730959497612,7.87686591,188.6,188.55,0.24202826]
[1730959498884,7.87686591,188.59,188.55,0.24202826]
[1730959499107,7.87686591,188.59,188.54,0.24202826]
[1730959500587,7.87686591,188.56,188.53,0.24202826]
[1730959500788,6.2236,188.59,188.52,0.24152559]
[1730959501107,6.2236,188.59,188.51,0.24152559]
[1730959501108,7.87686591,188.58,188.51,0.24152559]
[1730959501295,7.87686591,188.58,188.46,15.7347]
[1730959501502,7.87686591,188.58,188.51,7.87686591]
[1730959501708,7.87686591,188.57,188.46,15.7347]
[1730959502004,7.87686591,188.58,188.51,7.87686591]
[1730959502208,6.2236,188.59,188.51,7.87686591]
[1730959502382,7.87686591,188.57,188.51,7.87686591]
[1730959502582,6.2236,188.59,188.52,7.87686591]
[1730959502799,7.87686591,188.57,188.51,7.87686591]
[1730959502998,6.2236,188.59,188.52,7.87686591]
[1730959503189,7.87686591,188.58,188.52,7.87686591]
[1730959504506,6.1236,188.59,188.54,7.87686591]
[1730959504701,6.1236,188.59,188.47,0.12549]
[1730959505008,6.1236,188.59,188.54,7.87686591]
[1730959505209,6.1236,188.59,188.53,7.87686591]
[1730959505210,14.00046591,188.59,188.53,7.87686591]
[1730959507010,6.1236,188.59,188.53,7.87686591]
[1730959507312,14.00046591,188.59,188.53,7.87686591]
[1730959507515,14.00046591,188.59,188.47,0.12549]
[1730959507712,14.00046591,188.59,188.52,7.87686591]
[1730959508401,14.00046591,188.59,188.53,7.87686591]
[1730959509017,14.00046591,188.59,188.52,7.87686591]
[1730959511610,14.00046591,188.59,188.47,0.12549]
[1730959511790,14.00046591,188.59,188.52,7.87686591]
[1730959511990,7.87686591,188.58,188.52,7.87686591]
[1730959513996,7.87686591,188.58,188.47,0.12549]
[1730959514314,7.87686591,188.58,188.52,7.87686591]
[1730959516796,6.1236,188.59,188.52,7.87686591]
[1730959516994,14.00046591,188.59,188.53,7.87686591]
[1730959517400,7.87686591,188.58,188.52,7.87686591]
[1730959517694,6.1236,188.59,188.53,2.65080446]
[1730959517900,14.00046591,188.59,188.54,2.65080446]
[1730959518113,14.00046591,188.59,188.55,2.65080446]